bitfinex-derivatives/quotes_SOLF0:USTF0_20241206
["timestamp","ask_amount","ask_price","bid_price","bid_amount"]
[1733510359871,2.0801,240.03,240.0,6.40187273]
[1733510360272,2.0801,240.03,239.97,2.0806]
[1733510360568,2.0801,240.03,240.0,6.40187273]
[1733510360767,6.40187273,240.1,240.0,6.40187273]
[1733510360975,2.0802,240.02,240.0,6.40187273]
[1733510361366,2.0802,240.02,239.96,3.4473]
[1733510361677,2.0802,240.02,239.99,6.40187273]
[1733510361976,2.0802,240.02,240.01,6.40187273]
[1733510362178,2.0801,240.04,240.01,6.40187273]
[1733510362972,2.0801,240.04,239.96,1.3667]
[1733510362973,2.0799,240.06,240.03,6.40187273]
[1733510363475,2.0798,240.07,240.05,6.40187273]
[1733510363967,6.40187273,240.12,240.05,6.40187273]
[1733510364170,2.0798,240.06,240.05,6.40187273]
[1733510364773,2.0797,240.07,240.05,6.40187273]
[1733510364975,6.40187273,240.12,240.03,6.40187273]
[1733510365367,2.0795,240.1,240.03,6.40187273]
[1733510365567,6.40187273,240.12,240.03,6.40187273]
[1733510365969,2.0799,240.06,240.03,6.40187273]
[1733510367674,2.0799,240.05,240.03,6.40187273]
[1733510368072,6.40187273,240.08,239.97,1.2976]
[1733510368377,6.40187273,240.08,239.98,6.40187273]
[1733510369579,2.0803,240.01,239.98,6.40187273]
[1733510370076,2.0812,239.9,239.8,3.0]
[1733510370271,3.0,240.01,239.89,6.40187273]
[1733510370581,3.0,240.01,239.93,6.40187273]
[1733510371479,2.0807,239.96,239.93,6.40187273]
[1733510371780,2.0807,239.96,239.95,6.40187273]
[1733510375480,3.0,240.1,239.95,6.40187273]
[1733510375683,6.40187273,240.09,240.0,6.40187273]
[1733510376080,2.0804,240.0,239.98,6.40187273]
[1733510376586,6.40187273,240.07,239.98,6.40187273]
[1733510377979,2.0804,240.0,239.98,6.40187273]
[1733510380287,2.0804,239.99,239.98,6.40187273]
[1733510385093,6.40187273,240.07,239.93,0.60518]
[1733510385287,2.0806,239.97,239.96,6.40187273]
[1733510390996,2.0805,239.99,239.96,6.40187273]
[1733510391197,6.40187273,240.09,239.98,6.40187273]
[1733510391699,2.0804,239.99,239.98,6.40187273]
[1733510392106,6.40187273,240.06,239.92,1.3167]
[1733510392300,6.40187273,240.06,239.95,6.40187273]
[1733510392598,1.2725,240.05,239.95,6.40187273]
[1733510393798,2.0806,239.97,239.92,3.3977]
[1733510393994,2.0806,239.97,239.96,6.40187273]
[1733510399298,4.1587,240.12,239.96,6.40187273]
[1733510399502,6.40187273,240.07,239.96,6.40187273]
[1733510400116,6.40187273,240.07,239.99,6.40187273]
[1733510400799,2.0806,239.98,239.92,3.3977]
[1733510400999,2.0806,239.98,239.97,6.40187273]
[1733510404608,2.82,240.04,239.91,2.82]
[1733510404808,6.40187273,240.02,239.93,6.40187273]
[1733510405108,2.6703,240.03,239.95,6.40187273]
[1733510405515,6.40187273,240.02,239.93,6.40187273]
[1733510405805,2.6703,240.03,239.93,6.40187273]
[1733510406005,2.6703,240.03,239.89,1.3562]
[1733510406006,2.0807,239.96,239.95,6.40187273]
[1733510406204,2.0807,239.96,239.79,1.3803]
[1733510406205,6.40187273,239.96,239.79,1.3803]
[1733510406403,2.6703,240.03,239.79,1.3803]
[1733510406404,2.82,239.97,239.79,1.3803]
[1733510406716,2.0815,239.87,239.83,6.40187273]
[1733510406906,2.0815,239.87,239.86,5.49868845]
[1733510408002,2.0815,239.87,239.86,3.8057614]
[1733510408204,2.0815,239.87,239.86,1.23006247]
[1733510408405,2.0815,239.87,239.86,3.80609207]
[1733510409616,1.3493,239.94,239.86,3.80609207]
[1733510409803,9.22187273,239.99,239.91,6.40187273]
[1733510410202,2.081,239.92,239.91,6.40187273]
[1733510412114,2.0813,239.9,239.89,6.40187273]
[1733510412303,6.40187273,239.95,239.89,2.57768091]
[1733510412503,6.40187273,239.95,239.86,6.59069273]
[1733510412709,2.0815,239.87,239.86,0.18882]
[1733510413009,2.0815,239.87,239.86,3.80768331]
[1733510413613,2.0815,239.87,239.86,3.61886331]
[1733510414010,6.40187273,239.91,239.83,6.40187273]
[1733510414309,2.0817,239.84,239.83,6.40187273]
[1733510414513,2.0817,239.84,239.83,8.97882118]
[1733510414914,2.0817,239.84,239.83,10.02023387]
[1733510416513,2.0817,239.84,239.83,8.97882118]
[1733510417203,2.0817,239.84,239.83,6.40187273]
[1733510420912,6.40187273,239.91,239.69,1.3157]
[1733510421112,3.9264,239.92,239.7,6.25731855]
[1733510421113,2.0822,239.79,239.7,6.25731855]
[1733510421312,2.72,239.86,239.71,7.60221855]
[1733510421514,2.0822,239.8,239.72,5.62001855]
[1733510421710,2.72,239.86,239.73,3.53731855]
[1733510421915,2.72,239.86,239.74,3.53731855]
[1733510422109,2.0822,239.79,239.75,3.53731855]
[1733510422317,2.0822,239.79,239.78,6.40187273]
[1733510422616,2.0822,239.79,239.78,2.49592221]
[1733510422819,2.0823,239.78,239.77,6.40187273]
[1733510423011,2.72,239.86,239.77,9.93847064]
[1733510423212,2.72,239.86,239.77,6.40187273]
[1733510423613,2.0823,239.79,239.77,6.40187273]
[1733510423815,2.72,239.86,239.77,6.40187273]
[1733510424017,2.0822,239.78,239.77,6.40187273]
[1733510424223,2.0822,239.78,239.77,9.93678689]
[1733510424416,2.0822,239.78,239.77,9.93636068]
[1733510425711,2.72,239.85,239.77,9.93636068]
[1733510426013,2.72,239.87,239.82,6.40187273]
[1733510426411,2.082,239.81,239.8,6.40187273]
[1733510426617,2.082,239.81,239.8,3.53386878]
[1733510426815,2.082,239.81,239.8,9.93574151]
[1733510427010,2.0818,239.82,239.8,9.93574151]
[1733510427214,2.0818,239.82,239.81,3.53386878]
[1733510427922,2.72,239.91,239.81,3.53386878]
[1733510428219,2.72,239.91,239.84,6.40187273]
[1733510428515,9.12187273,239.91,239.84,6.40187273]
[1733510428819,2.0817,239.85,239.82,6.40187273]
[1733510430314,2.5877,239.92,239.84,6.40187273]
[1733510430521,2.72,239.96,239.87,6.40187273]
[1733510433122,6.40187273,239.99,239.89,6.40187273]
[1733510433314,2.72,239.99,239.91,6.40187273]
[1733510433614,6.40187273,240.0,239.91,6.40187273]
[1733510434620,2.0808,239.95,239.91,6.40187273]
[1733510434820,2.72,240.03,239.93,6.40187273]
[1733510435016,6.40187273,240.02,239.93,6.40187273]
[1733510435622,2.0806,239.97,239.93,6.40187273]
[1733510436322,2.0806,239.97,239.95,6.40187273]
[1733510437735,9.12187273,240.03,239.9,4.8011]
[1733510437736,2.0808,239.94,239.91,6.40187273]
[1733510438025,6.40187273,240.01,239.91,6.40187273]
[1733510439227,2.0808,239.94,239.91,6.40187273]
[1733510440121,6.40187273,239.99,239.91,6.40187273]
[1733510440323,2.0809,239.93,239.91,6.40187273]
[1733510440924,2.0809,239.93,239.89,6.40187273]
[1733510441221,6.40187273,239.99,239.89,6.40187273]
[1733510441419,7.24323145,239.98,239.89,6.40187273]
[1733510441723,6.40187273,239.99,239.88,2.72]
[1733510441724,7.24323145,239.97,239.91,6.40187273]
[1733510441930,6.40187273,239.99,239.91,6.40187273]
[1733510442118,2.0806,239.96,239.91,6.40187273]
[1733510442432,7.24299735,239.98,239.91,6.40187273]
[1733510442433,6.40187273,240.01,239.91,6.40187273]
[1733510442729,7.24375646,240.0,239.91,6.40187273]
[1733510442926,7.24375646,239.99,239.91,6.40187273]
[1733510443127,7.24375646,239.98,239.91,6.40187273]
[1733510443329,2.0809,239.94,239.91,6.40187273]
[1733510444529,2.0809,239.93,239.89,6.40187273]
[1733510445331,6.40187273,239.97,239.88,6.40187273]
[1733510445533,2.0818,239.82,239.81,0.16097]
[1733510445736,8.48367273,239.82,239.81,0.16097]
[1733510445935,15.73518415,239.82,239.81,0.16097]
[1733510446429,9.33331142,239.82,239.81,0.16097]
[1733510447533,2.0818,239.82,239.81,0.16097]
[1733510449839,6.40187273,239.92,239.81,6.56284273]
[1733510450027,6.40187273,239.92,239.83,6.40187273]
[1733510450736,2.0815,239.86,239.83,6.40187273]
[1733510452735,2.0815,239.86,239.81,6.56284273]
[1733510453229,2.66,239.96,239.81,0.16097]
[1733510453230,6.40187273,239.88,239.81,0.16097]
[1733510453534,6.40187273,239.86,239.81,0.16097]
[1733510454325,6.40187273,239.86,239.8,2.66]
[1733510454637,2.0818,239.82,239.8,2.66]
[1733510455632,10.01039844,239.91,239.8,2.66]
[1733510455933,10.01039844,239.87,239.75,2.66]
[1733510457937,10.01039844,239.79,239.53,12.49]
[1733510458240,10.01039844,239.79,239.61,4.1619]
[1733510458241,2.66,239.78,239.61,4.1619]
[1733510458834,1.3531,239.86,239.63,10.01039844]
[1733510459033,10.01039844,239.79,239.63,10.01039844]
[1733510459239,2.66,239.78,239.63,10.01039844]
[1733510459440,10.01039844,239.79,239.63,10.01039844]
[1733510459634,2.083,239.7,239.63,10.01039844]
[1733510459836,2.66,239.77,239.63,10.01039844]
[1733510460240,2.66,239.77,239.61,4.1619]
[1733510460439,10.01039844,239.75,239.61,4.1619]
[1733510460842,10.01039844,239.75,239.62,2.0836]
[1733510461348,2.66,239.77,239.63,10.01039844]
[1733510461750,2.66,239.76,239.66,10.01039844]
[1733510462044,2.66,239.76,239.63,10.01039844]
[1733510462753,2.083,239.69,239.63,10.01039844]
[1733510464756,2.0831,239.68,239.61,6.2456]
[1733510466351,2.66,239.73,239.61,6.2456]
[1733510466656,2.0832,239.67,239.61,6.2456]
[1733510467059,2.0833,239.66,239.61,6.2456]
[1733510467260,2.66,239.73,239.61,4.1619]
[1733510468256,12.67039844,239.73,239.61,4.1619]
[1733510468852,2.0835,239.63,239.61,4.1619]
[1733510469260,2.0835,239.63,239.61,2.7653]
[1733510469456,2.0836,239.62,239.61,1.3897]
[1733510470855,10.01039844,239.73,239.61,1.3897]
[1733510471064,2.0835,239.64,239.61,1.3897]
[1733510472356,2.0831,239.67,239.61,1.3897]
[1733510473357,2.0831,239.67,239.61,4.0497]
[1733510473563,2.66,239.76,239.63,10.01039844]
[1733510473760,2.66,239.76,239.64,1.4002]
[1733510473959,2.66,239.76,239.65,2.0833]
[1733510474158,2.0829,239.7,239.65,2.0833]
[1733510474358,10.01039844,239.81,239.66,10.01039844]
[1733510474560,2.0823,239.77,239.68,2.083]
[1733510474764,10.01039844,239.84,239.69,10.01039844]
[1733510474957,2.66,239.83,239.7,1.3879]
[1733510475158,2.0825,239.75,239.7,1.3879]
[1733510475364,2.66,239.83,239.7,1.3879]
[1733510476164,2.66,239.83,239.7,3.4707]
[1733510476562,2.0825,239.75,239.7,1.3879]
[1733510476759,10.01039844,239.81,239.7,1.3879]
[1733510477366,2.0827,239.72,239.7,1.3879]
[1733510477560,10.01039844,239.81,239.67,4.0218]
[1733510477961,2.66,239.83,239.69,10.01039844]
[1733510478468,2.0825,239.74,239.68,1.3092]
[1733510480669,10.01039844,239.82,239.68,1.3092]
[1733510480861,2.0824,239.76,239.68,1.3092]
[1733510481065,2.0824,239.76,239.68,11.31959844]
[1733510481568,2.0825,239.75,239.69,2.0829]
[1733510482470,12.67039844,239.82,239.69,2.0829]
[1733510482766,12.67039844,239.82,239.7,2.0829]
[1733510483269,12.67039844,239.82,239.68,11.31959844]
[1733510483669,2.0822,239.78,239.68,11.31959844]
[1733510483872,12.67039844,239.82,239.68,13.40259844]
[1733510484168,2.0822,239.78,239.68,11.31959844]
[1733510484368,12.67039844,239.82,239.68,11.31959844]
[1733510484971,12.67039844,239.82,239.68,1.3092]
[1733510484972,2.0828,239.71,239.68,1.3092]
[1733510485667,10.01039844,239.82,239.68,1.3092]
[1733510485863,2.66,239.81,239.68,1.3092]
[1733510486665,2.0826,239.73,239.68,7.71979827]
[1733510486870,6.41059827,239.77,239.68,7.71979827]
[1733510487072,6.41059827,239.79,239.7,6.41059827]
[1733510487462,2.0827,239.73,239.7,6.41059827]
[1733510488468,2.0827,239.72,239.7,6.41059827]
[1733510488770,2.66,239.81,239.68,1.3092]
[1733510488771,6.41059827,239.76,239.68,1.3092]
[1733510489175,2.0828,239.72,239.68,1.3092]
[1733510490467,2.0828,239.72,239.7,6.41059827]
[1733510492072,2.66,239.82,239.7,6.41059827]
[1733510492271,2.66,239.82,239.74,6.41059827]
[1733510492774,2.0823,239.77,239.74,6.41059827]
[1733510493470,2.0821,239.79,239.74,6.41059827]
[1733510493674,2.66,239.82,239.74,6.41059827]
[1733510493975,2.0817,239.84,239.8,6.41059827]
[1733510494873,1.23308,239.86,239.82,6.41059827]
[1733510495174,1.23308,239.86,239.85,6.41059827]
[1733510495978,1.23308,239.86,239.83,6.41059827]
[1733510496673,1.23308,239.86,239.82,2.0818]
[1733510499768,3.31458,239.86,239.82,2.0818]
[1733510499973,1.23308,239.86,239.81,2.66]
[1733510500169,2.0818,239.82,239.79,1.294]
[1733510500380,1.23308,239.86,239.79,1.294]
[1733510500878,2.0819,239.81,239.79,1.294]
[1733510501584,1.23308,239.86,239.79,1.294]
[1733510501774,2.0818,239.82,239.79,1.294]
[1733510503673,1.23308,239.86,239.79,1.294]
[1733510504574,2.0817,239.84,239.79,3.3761]
[1733510504878,1.23308,239.86,239.79,1.294]
[1733510505177,2.0816,239.85,239.8,2.082]
[1733510506880,2.0816,239.85,239.81,2.0819]
[1733510508480,0.70048,239.94,239.83,10.00579651]
[1733510508680,0.70048,239.94,239.88,10.00579651]
[1733510508882,0.70048,239.94,239.89,2.66]
[1733510509074,0.70048,239.94,239.79,1.294]
[1733510509075,0.70048,239.94,239.81,10.00579651]
[1733510509281,0.70048,239.94,239.82,2.66]
[1733510509478,2.0814,239.87,239.83,2.0817]
[1733510509979,2.0814,239.87,239.82,2.66]
[1733510509980,2.0817,239.84,239.82,2.66]
[1733510510675,2.0817,239.83,239.82,2.66]
[1733510513582,2.0821,239.79,239.66,3.53196172]
[1733510513778,10.00579651,239.86,239.69,11.32309651]
[1733510514076,2.0819,239.82,239.71,2.0828]
[1733510514284,10.00579651,239.86,239.71,2.0828]
[1733510514783,2.0823,239.77,239.71,2.0828]
[1733510515381,2.0824,239.76,239.71,2.0828]
[1733510515790,10.00579651,239.86,239.69,2.0829]
[1733510516080,10.00579651,239.82,239.66,3.9744]
[1733510516282,2.66,239.81,239.66,3.9744]
[1733510516587,2.0828,239.71,239.67,6.41186074]
[1733510516780,6.41186074,239.77,239.67,6.41186074]
[1733510516975,6.41186074,239.75,239.65,2.66]
[1733510517177,6.41186074,239.75,239.65,9.07186074]
[1733510517382,2.0827,239.72,239.65,9.07186074]
[1733510517582,6.41186074,239.75,239.65,9.07186074]
[1733510518482,2.083,239.69,239.65,2.66]
[1733510519684,2.0829,239.7,239.65,2.66]
[1733510519884,1.27,239.77,239.65,2.66]
[1733510520390,1.27,239.77,239.62,10.02034591]
[1733510520582,2.0831,239.68,239.62,10.02034591]
[1733510523788,2.66,239.75,239.63,2.0834]
[1733510523789,2.0828,239.72,239.63,2.0834]
[1733510523985,2.66,239.75,239.63,2.0834]
[1733510524186,2.66,239.75,239.62,10.02034591]
[1733510524397,2.0829,239.71,239.62,10.02034591]
[1733510525093,2.0829,239.7,239.63,2.0834]
[1733510526189,2.083,239.69,239.63,2.0834]
[1733510526391,2.66,239.75,239.62,10.02034591]
[1733510527087,2.66,239.75,239.62,12.10384591]
[1733510528691,2.083,239.69,239.62,10.02034591]
[1733510528892,2.083,239.69,239.63,2.0835]
[1733510529084,6.8887,239.85,239.62,10.02034591]
[1733510529290,2.0826,239.74,239.63,1.3828]
[1733510529488,2.0826,239.74,239.67,2.0831]
[1733510529690,2.0821,239.79,239.69,10.02034591]
[1733510529886,2.66,239.83,239.69,10.02034591]
[1733510530085,2.66,239.83,239.72,2.0827]
[1733510530286,1.2957,239.84,239.69,10.02034591]
[1733510530487,4.1618,239.93,239.67,2.66]
[1733510530488,10.02034591,239.88,239.77,2.0823]
[1733510530689,2.66,239.9,239.75,10.02034591]
[1733510530886,2.66,239.9,239.74,2.66]
[1733510530887,10.02034591,239.88,239.74,2.66]
[1733510531084,10.02034591,239.88,239.76,2.0823]
[1733510531294,10.02034591,239.88,239.74,2.66]
[1733510531493,2.0818,239.83,239.74,2.66]
[1733510531692,10.02034591,239.88,239.78,2.0822]
[1733510531895,12.68034591,239.91,239.78,2.0822]
[1733510532089,2.0817,239.84,239.75,11.42234591]
[1733510532288,2.0817,239.84,239.77,2.0823]
[1733510533194,1.33703,239.87,239.77,2.0823]
[1733510533195,2.0818,239.83,239.77,2.0823]
[1733510534287,1.33703,239.87,239.75,13.50474591]
[1733510534994,2.082,239.81,239.75,13.50474591]
[1733510535494,2.082,239.81,239.76,2.0823]
[1733510536288,1.33703,239.87,239.76,2.0823]
[1733510536496,2.082,239.8,239.76,2.0823]
[1733510538792,1.33703,239.87,239.77,2.0823]
[1733510538793,2.082,239.81,239.77,2.0823]
[1733510540296,1.33703,239.87,239.79,2.0821]
[1733510540297,2.0818,239.83,239.79,2.0821]
[1733510540599,2.0818,239.83,239.8,6.40514012]
[1733510540994,1.33703,239.87,239.8,6.40514012]
[1733510541191,2.0817,239.84,239.82,6.40514012]
[1733510541895,2.0815,239.86,239.82,8.48694012]
[1733510542095,2.0815,239.86,239.84,6.40514012]
[1733510542496,1.33703,239.87,239.84,6.40514012]
[1733510542691,1.33703,239.87,239.86,6.40514012]
[1733510543897,1.33703,239.87,239.84,6.40514012]
[1733510544097,1.33703,239.87,239.84,8.48674012]
[1733510544298,1.33703,239.87,239.84,6.40514012]
[1733510544607,1.33703,239.87,239.81,12.66429884]
[1733510545604,3.41853,239.87,239.83,2.0817]
[1733510545798,3.41853,239.87,239.81,12.66429884]
[1733510545799,1.33703,239.87,239.81,12.66429884]
[1733510546198,1.33703,239.87,239.82,2.0818]
[1733510546503,1.33703,239.87,239.81,12.66429884]
[1733510546999,1.33703,239.87,239.85,2.0815]
[1733510549298,3.41843,239.87,239.83,2.0817]
[1733510549903,1.33703,239.87,239.84,2.0816]
[1733510550699,1.33703,239.87,239.81,10.00429884]
[1733510550894,1.33703,239.87,239.82,2.66]
[1733510551695,3.41853,239.87,239.82,4.7418]
[1733510553003,3.41853,239.87,239.83,2.0817]
[1733510553395,2.0816,239.85,239.82,2.66]
[1733510554801,1.33703,239.87,239.82,2.66]
[1733510554995,2.0817,239.84,239.82,2.66]
[1733510555706,1.33703,239.87,239.82,2.66]
[1733510556005,10.00429884,239.94,239.82,2.66]
[1733510556401,10.00429884,239.94,239.8,10.00429884]
[1733510556600,10.00429884,239.94,239.8,12.66429884]
[1733510556800,2.66,239.93,239.8,12.66429884]
[1733510556998,10.00429884,239.91,239.75,1.402]
[1733510557302,10.00429884,239.88,239.73,11.38709884]
[1733510557608,2.0825,239.75,239.73,1.3828]
[1733510557904,2.0825,239.75,239.69,10.00429884]
[1733510557905,2.082,239.8,239.69,10.00429884]
[1733510558206,10.00429884,239.81,239.68,3.3607]
[1733510558397,10.00429884,239.81,239.68,1.2777]
[1733510558600,2.0825,239.75,239.68,3.3607]
[1733510559498,2.0826,239.74,239.68,2.083]
[1733510559703,2.0826,239.74,239.68,12.08729884]
[1733510560301,2.66,239.81,239.67,4.0202]
[1733510560502,2.0826,239.73,239.67,6.1033]
[1733510561998,12.66429884,239.81,239.67,6.1033]
[1733510562306,2.0827,239.72,239.67,6.1033]
[1733510562901,12.66429884,239.81,239.67,4.0202]
[1733510563097,10.00429884,239.78,239.62,10.00429884]
[1733510563411,10.00429884,239.78,239.6,2.66]
[1733510563710,1.2695,239.77,239.6,2.66]
[1733510564108,1.2695,239.77,239.62,2.0836]
[1733510564610,1.2695,239.77,239.6,2.66]
[1733510564906,2.0831,239.68,239.62,2.0836]
[1733510565109,2.0831,239.68,239.6,2.66]
[1733510565810,2.0831,239.68,239.63,2.0835]
[1733510566008,2.0831,239.68,239.6,2.66]
[1733510566312,2.0831,239.68,239.62,2.0836]
[1733510566507,1.2695,239.77,239.62,10.00429884]
[1733510566700,2.083,239.69,239.62,10.00429884]
[1733510566908,6.41292917,239.75,239.66,6.41292917]
[1733510568711,1.2695,239.77,239.68,6.41292917]
[1733510568910,2.0827,239.72,239.68,6.41292917]
[1733510569207,2.6522,239.8,239.7,6.41292917]
[1733510569208,1.3061,239.8,239.7,6.41292917]
[1733510569413,2.0824,239.75,239.7,6.41292917]
[1733510569616,6.41292917,239.78,239.66,2.66]
[1733510569815,6.41292917,239.78,239.69,6.41292917]
[1733510570009,6.41292917,239.78,239.71,6.41292917]
[1733510570410,2.0825,239.74,239.71,6.41292917]
[1733510570613,2.0825,239.74,239.69,6.41292917]
[1733510570813,9.07292917,239.8,239.71,6.41292917]
[1733510571013,2.0824,239.76,239.71,6.41292917]
[1733510571611,6.41292917,239.8,239.71,6.41292917]
[1733510571811,6.41292917,239.85,239.75,6.41292917]
[1733510572114,6.41292917,239.85,239.77,6.41292917]
[1733510572816,2.082,239.81,239.75,6.41292917]
[1733510573014,2.66,239.88,239.75,6.41292917]
[1733510573317,6.41292917,239.83,239.75,6.41292917]
[1733510573511,2.0821,239.8,239.75,6.41292917]
[1733510574412,2.0821,239.79,239.73,2.66]
[1733510574614,2.0821,239.79,239.74,6.41292917]
[1733510575714,6.41292917,239.83,239.76,6.41292917]
[1733510575914,2.082,239.8,239.76,6.41292917]
[1733510576409,6.41292917,239.85,239.73,2.66]
[1733510576610,6.41292917,239.83,239.74,6.41292917]
[1733510577112,2.0821,239.8,239.76,6.41292917]
[1733510577912,2.0818,239.83,239.76,6.41292917]
[1733510578114,2.0818,239.83,239.78,6.41292917]
[1733510579222,2.0818,239.83,239.77,2.0823]
[1733510579418,2.0819,239.82,239.76,2.0823]
[1733510579620,2.0819,239.82,239.73,2.66]
[1733510579621,6.41292917,239.83,239.75,6.41292917]
[1733510579817,2.66,239.89,239.77,6.41292917]
[1733510579818,6.41292917,239.87,239.77,6.41292917]
[1733510580515,2.0818,239.83,239.77,6.41292917]
[1733510580722,6.41292917,239.87,239.77,6.41292917]
[1733510580923,2.0819,239.81,239.77,6.41292917]
[1733510582123,2.082,239.8,239.77,6.41292917]
[1733510582323,6.41292917,239.85,239.77,6.41292917]
[1733510582822,6.41292917,239.83,239.69,1.3462]
[1733510583022,6.41292917,239.83,239.73,6.41292917]
[1733510583425,6.41292917,239.81,239.73,6.41292917]
[1733510585120,6.41292917,239.79,239.69,1.3462]
[1733510585425,6.41292917,239.77,239.68,6.41292917]
[1733510586321,6.41292917,239.73,239.63,6.41292917]
[1733510586522,2.0829,239.7,239.65,6.41292917]
[1733510586735,2.66,239.75,239.65,6.41292917]
[1733510587023,6.41292917,239.73,239.65,6.41292917]
[1733510587728,2.6451,239.82,239.67,6.41292917]
[1733510587927,9.07292917,239.77,239.67,6.41292917]
[1733510588128,9.07292917,239.77,239.69,6.41292917]
[1733510588329,9.07292917,239.77,239.64,2.66]
[1733510588527,2.0829,239.7,239.67,6.41292917]
[1733510590228,9.07292917,239.77,239.67,6.41292917]
[1733510590424,2.083,239.69,239.67,6.41292917]
[1733510590824,9.07292917,239.77,239.67,6.41292917]
[1733510591828,6.41292917,239.75,239.67,6.41292917]
[1733510592333,2.083,239.69,239.67,6.41292917]
[1733510592527,6.41292917,239.75,239.67,6.41292917]
[1733510593537,2.083,239.68,239.65,6.41292917]
[1733510593737,6.41292917,239.75,239.65,6.41292917]
[1733510594238,6.41292917,239.66,239.46,2.64]
[1733510594438,15.1351,239.82,239.54,6.41292917]
[1733510594439,6.41292917,239.63,239.54,6.41292917]
[1733510594634,2.0837,239.61,239.54,6.41292917]
[1733510594838,6.41292917,239.63,239.54,6.41292917]
[1733510595138,2.0837,239.61,239.54,6.41292917]
[1733510595333,6.41292917,239.63,239.54,6.41292917]
[1733510597339,2.0839,239.59,239.54,6.41292917]
[1733510597731,2.0839,239.59,239.56,6.41292917]
[1733510598338,2.0837,239.61,239.56,6.41292917]
[1733510598639,2.64,239.65,239.56,6.41292917]
[1733510598840,2.0837,239.61,239.56,6.41292917]
[1733510599441,2.0838,239.6,239.56,6.41292917]
[1733510599748,6.41292917,239.67,239.58,6.41292917]
[1733510600038,6.41292917,239.69,239.6,6.41292917]
[1733510600245,6.41292917,239.69,239.52,4.0523]
[1733510600246,6.41292917,239.67,239.58,6.41292917]
[1733510601347,2.0837,239.62,239.58,6.41292917]
[1733510602647,2.66,239.71,239.58,6.41292917]
[1733510602843,6.41292917,239.68,239.6,6.41292917]
[1733510603641,2.0834,239.64,239.6,6.41292917]
[1733510606044,2.0833,239.66,239.6,8.49662917]
[1733510606245,6.41292917,239.7,239.6,6.41292917]
[1733510606647,2.0834,239.65,239.6,6.41292917]
[1733510607949,2.0832,239.67,239.64,6.41292917]
[1733510608250,6.41292917,239.72,239.64,6.41292917]
[1733510609746,2.083,239.69,239.64,8.49632917]
[1733510609946,6.41292917,239.74,239.66,6.41292917]
[1733510610456,6.41292917,239.77,239.7,6.41292917]
[1733510610654,2.66,239.8,239.54,3.53674086]
[1733510610861,6.41292917,239.67,239.58,6.41292917]
[1733510611053,2.0836,239.62,239.58,6.41292917]
[1733510612254,2.0832,239.66,239.6,6.41292917]
[1733510612656,1.3299,239.76,239.64,6.41292917]
[1733510612855,6.41292917,239.74,239.64,6.41292917]
[1733510613551,4.1631,239.86,239.66,6.41292917]
[1733510613749,6.41292917,239.75,239.66,6.41292917]
[1733510614560,2.0828,239.71,239.66,6.41292917]
[1733510615264,2.083,239.7,239.64,6.41292917]
[1733510615460,6.41292917,239.73,239.64,6.41292917]
[1733510615664,6.41292917,239.71,239.63,2.66]
[1733510616553,2.0831,239.67,239.63,2.66]
[1733510617357,6.41292917,239.71,239.63,2.66]
[1733510617561,6.41292917,239.69,239.61,1.3598]
[1733510617963,2.0834,239.64,239.61,1.3598]
[1733510618856,6.41292917,239.64,239.51,2.49272022]
[1733510619063,2.0845,239.52,239.46,6.41292917]
[1733510619265,1.3478,239.68,239.44,1.3183]
[1733510619266,6.41292917,239.54,239.44,1.3183]
[1733510619461,6.41292917,239.54,239.44,7.73122917]
[1733510619658,2.0847,239.49,239.44,7.73122917]
[1733510619861,6.41292917,239.54,239.44,7.73122917]
[1733510620759,2.0845,239.51,239.44,7.73122917]
[1733510621557,6.41292917,239.54,239.44,7.73122917]
[1733510621758,2.66,239.56,239.44,7.73122917]
[1733510621965,6.41292917,239.55,239.46,6.41292917]
[1733510622263,1.3478,239.68,239.46,6.41292917]
[1733510622460,6.41292917,239.55,239.46,6.41292917]
[1733510622665,10.03628098,239.59,239.45,2.66]
[1733510622862,10.03628098,239.63,239.51,2.0845]
[1733510623072,10.03628098,239.63,239.47,10.03628098]